[Event "Early-Titled-Tuesday-Blitz-April-02-2024"]
[Site "Chess.com"]
[Date "2024.04.02"]
[Round "2"]
[White "kleber2007"]
[Black "Revan_2002"]
[Result "1/2-1/2"]
[WhiteElo "2464"]
[BlackElo "2714"]
[TimeControl "180+1"]
[EndTime "8:18:47 PDT"]
[Termination "Game drawn - insufficient material"]

1. Nf3 {[%clk 0:03:00.9]} 1... Nf6 {[%clk 0:02:59.5]} 2. g3 {[%clk 0:03:00.5]}
2... g6 {[%clk 0:02:59.7]} 3. b3 {[%clk 0:03:01.1]} 3... Bg7 {[%clk 0:03:00.2]}
4. Bb2 {[%clk 0:03:01.7]} 4... O-O {[%clk 0:03:00.8]} 5. Bg2 {[%clk 0:03:02.3]}
5... d6 {[%clk 0:03:00.7]} 6. d4 {[%clk 0:03:02.1]} 6... c6 {[%clk 0:02:53.7]}
7. O-O {[%clk 0:03:01.7]} 7... Qa5 {[%clk 0:02:51.7]} 8. Re1 {[%clk 0:03:00.3]}
8... Qh5 {[%clk 0:02:51]} 9. e4 {[%clk 0:03:00.1]} 9... Bg4 {[%clk 0:02:50.1]}
10. Nbd2 {[%clk 0:02:59.4]} 10... Nbd7 {[%clk 0:02:45.9]} 11. Qe2 {[%clk
0:02:59.1]} 11... e5 {[%clk 0:02:45.6]} 12. Qf1 {[%clk 0:02:53.5]} 12... exd4
{[%clk 0:02:39.3]} 13. Nxd4 {[%clk 0:02:40.7]} 13... Nc5 {[%clk 0:02:12.4]} 14.
h3 {[%clk 0:02:35.9]} 14... Bd7 {[%clk 0:02:13]} 15. f4 {[%clk 0:02:25.9]} 15...
Ne6 {[%clk 0:02:06.4]} 16. Nxe6 {[%clk 0:02:05.2]} 16... Bxe6 {[%clk 0:02:06.3]}
17. Nf3 {[%clk 0:01:57]} 17... Qc5+ {[%clk 0:01:57]} 18. Qf2 {[%clk 0:01:36.3]}
18... Qxf2+ {[%clk 0:01:56.2]} 19. Kxf2 {[%clk 0:01:37.2]} 19... Nxe4+ {[%clk
0:01:55.6]} 20. Rxe4 {[%clk 0:01:37.1]} 20... Bxb2 {[%clk 0:01:56.2]} 21. Rd1
{[%clk 0:01:37.1]} 21... d5 {[%clk 0:01:45.8]} 22. Re2 {[%clk 0:01:36.5]} 22...
Rfe8 {[%clk 0:01:43.5]} 23. c4 {[%clk 0:01:32.7]} 23... Bc3 {[%clk 0:01:36.6]}
24. Ng5 {[%clk 0:01:29.9]} 24... Rad8 {[%clk 0:01:10]} 25. Nxe6 {[%clk
0:01:28.7]} 25... Rxe6 {[%clk 0:01:10.9]} 26. cxd5 {[%clk 0:01:25]} 26... Red6
{[%clk 0:01:11]} 27. Re3 {[%clk 0:01:19.2]} 27... Bf6 {[%clk 0:00:58.2]} 28.
Red3 {[%clk 0:01:18.7]} 28... c5 {[%clk 0:00:58.4]} 29. a4 {[%clk 0:01:12]}
29... b6 {[%clk 0:00:55.7]} 30. R3d2 {[%clk 0:01:08.2]} 30... a6 {[%clk
0:00:53.3]} 31. Bf1 {[%clk 0:01:05.7]} 31... Bd4+ {[%clk 0:00:49.8]} 32. Kf3
{[%clk 0:01:02.1]} 32... Ra8 {[%clk 0:00:37.4]} 33. Bc4 {[%clk 0:01:01.4]} 33...
Kf8 {[%clk 0:00:36.8]} 34. Re2 {[%clk 0:00:58.6]} 34... Bf6 {[%clk 0:00:30.2]}
35. g4 {[%clk 0:00:57.7]} 35... h6 {[%clk 0:00:29.4]} 36. Re3 {[%clk 0:00:50.5]}
36... Ra7 {[%clk 0:00:23.6]} 37. Re2 {[%clk 0:00:50.4]} 37... Rd8 {[%clk
0:00:24]} 38. d6 {[%clk 0:00:44.9]} 38... Bd4 {[%clk 0:00:23]} 39. Re7 {[%clk
0:00:41]} 39... Rxe7 {[%clk 0:00:21]} 40. dxe7+ {[%clk 0:00:41.9]} 40... Kxe7
{[%clk 0:00:21.7]} 41. Bxa6 {[%clk 0:00:42]} 41... Kf6 {[%clk 0:00:19.3]} 42.
Re1 {[%clk 0:00:40.1]} 42... Bc3 {[%clk 0:00:17.5]} 43. Re3 {[%clk 0:00:37.9]}
43... Bd4 {[%clk 0:00:15]} 44. Re2 {[%clk 0:00:37.8]} 44... Rh8 {[%clk
0:00:12.7]} 45. Bc4 {[%clk 0:00:37.1]} 45... Rd8 {[%clk 0:00:11.7]} 46. h4
{[%clk 0:00:36.2]} 46... Rd7 {[%clk 0:00:09.6]} 47. g5+ {[%clk 0:00:36]} 47...
hxg5 {[%clk 0:00:10]} 48. hxg5+ {[%clk 0:00:29.7]} 48... Kg7 {[%clk 0:00:10.7]}
49. Kg4 {[%clk 0:00:28.1]} 49... Kf8 {[%clk 0:00:09.5]} 50. f5 {[%clk 0:00:28]}
50... gxf5+ {[%clk 0:00:09.6]} 51. Kxf5 {[%clk 0:00:28.9]} 51... Bc3 {[%clk
0:00:07]} 52. g6 {[%clk 0:00:22.6]} 52... fxg6+ {[%clk 0:00:05.6]} 53. Kxg6
{[%clk 0:00:22.6]} 53... Rd6+ {[%clk 0:00:06.1]} 54. Kf5 {[%clk 0:00:22]} 54...
Rf6+ {[%clk 0:00:05.4]} 55. Ke4 {[%clk 0:00:22]} 55... Bd4 {[%clk 0:00:05.9]}
56. Kd5 {[%clk 0:00:20.8]} 56... Rh6 {[%clk 0:00:04.3]} 57. Re6 {[%clk
0:00:20.4]} 57... Rxe6 {[%clk 0:00:03.5]} 58. Kxe6 {[%clk 0:00:20.7]} 58... Ke8
{[%clk 0:00:04.4]} 59. Kd6 {[%clk 0:00:20.7]} 59... Kd8 {[%clk 0:00:04.4]} 60.
Kc6 {[%clk 0:00:21.2]} 60... Kc8 {[%clk 0:00:04.9]} 61. Kxb6 {[%clk 0:00:21.7]}
61... Kb8 {[%clk 0:00:05.5]} 62. a5 {[%clk 0:00:21.8]} 62... Bf6 {[%clk
0:00:05.5]} 63. Kxc5 {[%clk 0:00:19.8]} 63... Be7+ {[%clk 0:00:05.5]} 64. Kb6
{[%clk 0:00:18.6]} 64... Bd8+ {[%clk 0:00:05.3]} 65. Kb5 {[%clk 0:00:19]} 65...
Be7 {[%clk 0:00:05.7]} 66. b4 {[%clk 0:00:19.5]} 66... Bxb4 {[%clk 0:00:05.6]}
67. Bd5 {[%clk 0:00:20.4]} 67... Bxa5 {[%clk 0:00:05.1]} 1/2-1/2

[Event "Early-Titled-Tuesday-Blitz-April-02-2024"]
[Site "Chess.com"]
[Date "2024.04.02"]
[Round "2"]
[White "eljanov"]
[Black "Journey_to_GrandMaster_YT"]
[Result "1-0"]
[WhiteElo "2883"]
[BlackElo "2600"]
[TimeControl "180+1"]
[EndTime "8:18:48 PDT"]
[Termination "eljanov won on time"]

1. e4 {[%clk 0:03:00.9]} 1... d6 {[%clk 0:03:00.7]} 2. d4 {[%clk 0:03:00.5]}
2... Nf6 {[%clk 0:03:01.2]} 3. Nc3 {[%clk 0:03:00.9]} 3... e5 {[%clk 0:03:01.5]}
4. Nf3 {[%clk 0:02:59.7]} 4... Nbd7 {[%clk 0:03:01.6]} 5. h3 {[%clk 0:02:57.6]}
5... c6 {[%clk 0:02:53.4]} 6. a4 {[%clk 0:02:54.9]} 6... a5 {[%clk 0:02:49.2]}
7. g4 {[%clk 0:02:55]} 7... h6 {[%clk 0:02:41.5]} 8. Be3 {[%clk 0:02:53.9]} 8...
Be7 {[%clk 0:02:41.4]} 9. Rg1 {[%clk 0:02:50]} 9... Qc7 {[%clk 0:02:23]} 10. h4
{[%clk 0:02:44.7]} 10... exd4 {[%clk 0:02:21.3]} 11. Nxd4 {[%clk 0:02:42.2]}
11... Nc5 {[%clk 0:02:17.2]} 12. Qf3 {[%clk 0:02:38.7]} 12... g6 {[%clk
0:02:09.1]} 13. O-O-O {[%clk 0:02:31.8]} 13... h5 {[%clk 0:02:07.1]} 14. gxh5
{[%clk 0:02:27.3]} 14... Rxh5 {[%clk 0:01:56.1]} 15. Bg5 {[%clk 0:02:20.3]}
15... Nh7 {[%clk 0:01:49.8]} 16. Nf5 {[%clk 0:01:29.2]} 16... Bxf5 {[%clk
0:01:37]} 17. exf5 {[%clk 0:01:29]} 17... Nxg5 {[%clk 0:01:33]} 18. hxg5 {[%clk
0:01:29]} 18... Rxg5 {[%clk 0:01:28.7]} 19. Bh3 {[%clk 0:01:20.5]} 19... gxf5
{[%clk 0:01:16.7]} 20. Bxf5 {[%clk 0:01:15.2]} 20... Ne6 {[%clk 0:01:07.9]} 21.
Qh3 {[%clk 0:00:33.9]} 21... O-O-O {[%clk 0:00:59.7]} 22. Bxe6+ {[%clk
0:00:34.1]} 22... fxe6 {[%clk 0:00:59.5]} 23. Qxe6+ {[%clk 0:00:34.7]} 23... Qd7
{[%clk 0:00:56.7]} 24. Qxd7+ {[%clk 0:00:34.3]} 24... Kxd7 {[%clk 0:00:52.9]}
25. f4 {[%clk 0:00:34.1]} 25... Rxg1 {[%clk 0:00:51.7]} 26. Rxg1 {[%clk
0:00:34.2]} 26... Rf8 {[%clk 0:00:52]} 27. Ne2 {[%clk 0:00:34.4]} 27... d5
{[%clk 0:00:39.9]} 28. Kd2 {[%clk 0:00:34.8]} 28... Rf7 {[%clk 0:00:29]} 29. Rg6
{[%clk 0:00:33.7]} 29... Bd6 {[%clk 0:00:27]} 30. Ke3 {[%clk 0:00:33.1]} 30...
Re7+ {[%clk 0:00:21.2]} 31. Kf3 {[%clk 0:00:29.7]} 31... Bc5 {[%clk 0:00:21]}
32. Ng3 {[%clk 0:00:30.1]} 32... Re3+ {[%clk 0:00:20.4]} 33. Kg4 {[%clk
0:00:30.1]} 33... Kc7 {[%clk 0:00:17.9]} 34. f5 {[%clk 0:00:27.7]} 34... Bd6
{[%clk 0:00:16.7]} 35. Kh4 {[%clk 0:00:24.8]} 35... Bxg3+ {[%clk 0:00:15]} 36.
Rxg3 {[%clk 0:00:24.8]} 36... Re2 {[%clk 0:00:13.3]} 37. Kg5 {[%clk 0:00:18.4]}
37... Kd7 {[%clk 0:00:09.9]} 38. Kg6 {[%clk 0:00:16.6]} 38... Ke7 {[%clk
0:00:05.8]} 39. Kg7 {[%clk 0:00:14.7]} 39... Rxc2 {[%clk 0:00:04.7]} 40. f6+
{[%clk 0:00:14.9]} 40... Ke6 {[%clk 0:00:02.2]} 41. f7 {[%clk 0:00:14]} 41...
Rf2 {[%clk 0:00:02.1]} 42. f8=Q {[%clk 0:00:07.3]} 42... Rxf8 {[%clk 0:00:02]}
43. Kxf8 {[%clk 0:00:08.2]} 43... d4 {[%clk 0:00:02.5]} 44. Rb3 {[%clk
0:00:08.3]} 44... c5 {[%clk 0:00:01.4]} 45. Rxb7 {[%clk 0:00:07.2]} 45... Kd5
{[%clk 0:00:02.3]} 46. Ke7 {[%clk 0:00:07]} 46... d3 {[%clk 0:00:01.8]} 47. Rd7+
{[%clk 0:00:07.3]} 47... Kc4 {[%clk 0:00:02.1]} 48. Kd6 {[%clk 0:00:06.7]} 48...
Kb4 {[%clk 0:00:02.4]} 49. Kc6 {[%clk 0:00:03.8]} 49... c4 {[%clk 0:00:03.3]}
50. Kb6 {[%clk 0:00:03.5]} 50... Kxa4 {[%clk 0:00:03.7]} 51. Kc5 {[%clk
0:00:03.8]} 51... Kb3 {[%clk 0:00:04.6]} 52. Rd4 {[%clk 0:00:03.1]} 52... a4
{[%clk 0:00:03.1]} 53. Rxc4 {[%clk 0:00:03]} 53... d2 {[%clk 0:00:02.6]} 54. Rd4
{[%clk 0:00:03]} 54... Kc2 {[%clk 0:00:02.7]} 55. Kb4 {[%clk 0:00:03.4]} 55...
Kxb2 {[%clk 0:00:02.3]} 56. Rxd2+ {[%clk 0:00:03.6]} 56... Kc1 {[%clk
0:00:01.8]} 57. Rf2 {[%clk 0:00:03.9]} 1-0

[Event "Early-Titled-Tuesday-Blitz-April-02-2024"]
[Site "Chess.com"]
[Date "2024.04.02"]
[Round "2"]
[White "RealPerangel"]
[Black "sergoy"]
[Result "1/2-1/2"]
[WhiteElo "2526"]
[BlackElo "2891"]
[TimeControl "180+1"]
[EndTime "8:18:52 PDT"]
[Termination "Game drawn by repetition"]

1. e4 {[%clk 0:01:31.5]} 1... c5 {[%clk 0:02:59.8]} 2. g3 {[%clk 0:01:31]} 2...
d5 {[%clk 0:02:58.4]} 3. exd5 {[%clk 0:01:30.6]} 3... Qxd5 {[%clk 0:02:58.4]} 4.
Nf3 {[%clk 0:01:31.2]} 4... Nc6 {[%clk 0:02:57.2]} 5. Nc3 {[%clk 0:01:30.8]}
5... Qe6+ {[%clk 0:02:43]} 6. Be2 {[%clk 0:01:30]} 6... Nf6 {[%clk 0:02:42.8]}
7. d4 {[%clk 0:01:29.8]} 7... cxd4 {[%clk 0:02:31]} 8. Nxd4 {[%clk 0:01:30.7]}
8... Qd7 {[%clk 0:02:21.9]} 9. Bb5 {[%clk 0:01:25.1]} 9... e5 {[%clk 0:02:19]}
10. Nxc6 {[%clk 0:01:25]} 10... bxc6 {[%clk 0:02:18.9]} 11. Ba4 {[%clk
0:01:07.4]} 11... Be7 {[%clk 0:02:03]} 12. Qxd7+ {[%clk 0:01:01.8]} 12... Bxd7
{[%clk 0:02:02.8]} 13. Be3 {[%clk 0:01:00.4]} 13... Nd5 {[%clk 0:02:01.1]} 14.
Bd2 {[%clk 0:00:57.2]} 14... Rb8 {[%clk 0:01:58.8]} 15. O-O-O {[%clk 0:00:54.7]}
15... Nb6 {[%clk 0:01:47.1]} 16. Bb3 {[%clk 0:00:53.7]} 16... O-O {[%clk
0:01:46.9]} 17. Be3 {[%clk 0:00:52.7]} 17... Bg4 {[%clk 0:01:46.4]} 18. Rd2
{[%clk 0:00:47.5]} 18... Rfd8 {[%clk 0:01:39.1]} 19. Re1 {[%clk 0:00:46.6]}
19... Kf8 {[%clk 0:01:12.5]} 20. f4 {[%clk 0:00:46.5]} 20... exf4 {[%clk
0:01:02.9]} 21. Bxf4 {[%clk 0:00:45.2]} 21... Rbc8 {[%clk 0:01:03.3]} 22. Rf1
{[%clk 0:00:41.3]} 22... f6 {[%clk 0:00:59.6]} 23. Ne4 {[%clk 0:00:36.6]} 23...
Rxd2 {[%clk 0:00:58.8]} 24. Nxd2 {[%clk 0:00:34]} 24... Nd5 {[%clk 0:00:58.8]}
25. Bxd5 {[%clk 0:00:32.7]} 25... cxd5 {[%clk 0:00:59.7]} 26. Be3 {[%clk
0:00:33.1]} 26... a6 {[%clk 0:00:59.2]} 27. c3 {[%clk 0:00:32.6]} 27... Kf7
{[%clk 0:00:58.7]} 28. Nb3 {[%clk 0:00:31.6]} 28... h5 {[%clk 0:00:55]} 29. Kd2
{[%clk 0:00:29.8]} 29... Bd6 {[%clk 0:00:54.6]} 30. Bf4 {[%clk 0:00:28]} 30...
Be7 {[%clk 0:00:53.8]} 31. Nd4 {[%clk 0:00:27.1]} 31... a5 {[%clk 0:00:53]} 32.
b3 {[%clk 0:00:27.3]} 32... Bd7 {[%clk 0:00:51.3]} 33. Be3 {[%clk 0:00:27.1]}
33... Ba3 {[%clk 0:00:47.5]} 34. Nc2 {[%clk 0:00:26.1]} 34... Bd6 {[%clk
0:00:46.5]} 35. Nd4 {[%clk 0:00:26]} 35... h4 {[%clk 0:00:43.4]} 36. Bf4 {[%clk
0:00:26.3]} 36... Ba3 {[%clk 0:00:39]} 37. Nc2 {[%clk 0:00:20.3]} 37... Bb2
{[%clk 0:00:39.2]} 38. Be5 {[%clk 0:00:20.1]} 38... Bb5 {[%clk 0:00:36.2]} 39.
Rb1 {[%clk 0:00:18.3]} 39... fxe5 {[%clk 0:00:35.6]} 40. Rxb2 {[%clk 0:00:18]}
40... hxg3 {[%clk 0:00:35.4]} 41. hxg3 {[%clk 0:00:18.7]} 41... Rh8 {[%clk
0:00:35.7]} 42. Ne3 {[%clk 0:00:18.2]} 42... Rh2+ {[%clk 0:00:34.2]} 43. Kc1
{[%clk 0:00:18.3]} 43... Rh1+ {[%clk 0:00:34.9]} 44. Kd2 {[%clk 0:00:18.7]}
44... Ke6 {[%clk 0:00:35.1]} 45. c4 {[%clk 0:00:18.3]} 45... Bc6 {[%clk
0:00:33.3]} 46. cxd5+ {[%clk 0:00:18.3]} 46... Bxd5 {[%clk 0:00:34.2]} 47. Rc2
{[%clk 0:00:18.6]} 47... Rg1 {[%clk 0:00:30.4]} 48. g4 {[%clk 0:00:18.3]} 48...
Bf3 {[%clk 0:00:29.4]} 49. Rc5 {[%clk 0:00:17.9]} 49... Bxg4 {[%clk 0:00:29.1]}
50. Rxa5 {[%clk 0:00:17.9]} 50... Bf3 {[%clk 0:00:28.6]} 51. Nc4 {[%clk
0:00:18.2]} 51... e4 {[%clk 0:00:27.6]} 52. Ke3 {[%clk 0:00:18.4]} 52... g5
{[%clk 0:00:27.7]} 53. Nd2 {[%clk 0:00:18.5]} 53... g4 {[%clk 0:00:27.2]} 54.
Rg5 {[%clk 0:00:18]} 54... Re1+ {[%clk 0:00:26]} 55. Kf4 {[%clk 0:00:18.3]}
55... Rd1 {[%clk 0:00:19.7]} 56. Nxe4 {[%clk 0:00:15.9]} 56... Rd4 {[%clk
0:00:19.1]} 57. Re5+ {[%clk 0:00:16.4]} 57... Kd7 {[%clk 0:00:19.3]} 58. Ke3
{[%clk 0:00:17]} 58... Rd1 {[%clk 0:00:15.1]} 59. Nf6+ {[%clk 0:00:16.8]} 59...
Kd6 {[%clk 0:00:13.8]} 60. Rg5 {[%clk 0:00:17]} 60... Rg1 {[%clk 0:00:12.7]} 61.
Kf4 {[%clk 0:00:16.9]} 61... Ra1 {[%clk 0:00:11.3]} 62. a4 {[%clk 0:00:15.4]}
62... Ra3 {[%clk 0:00:11]} 63. Rb5 {[%clk 0:00:15]} 63... Bd1 {[%clk 0:00:11]}
64. Ne4+ {[%clk 0:00:14]} 64... Kc6 {[%clk 0:00:10.9]} 65. Rc5+ {[%clk
0:00:13.1]} 65... Kb6 {[%clk 0:00:10.9]} 66. Rb5+ {[%clk 0:00:13.5]} 66... Kc6
{[%clk 0:00:11.2]} 67. Nd2 {[%clk 0:00:13.9]} 67... Ra2 {[%clk 0:00:11.2]} 68.
Ne4 {[%clk 0:00:13.9]} 68... Ra3 {[%clk 0:00:11.4]} 1/2-1/2

[Event "Early-Titled-Tuesday-Blitz-April-02-2024"]
[Site "Chess.com"]
[Date "2024.04.02"]
[Round "2"]
[White "Irina_Mikhaylova"]
[Black "RedFirePanda"]
[Result "1/2-1/2"]
[WhiteElo "2346"]
[BlackElo "2539"]
[TimeControl "180+1"]
[EndTime "8:18:52 PDT"]
[Termination "Game drawn - insufficient material"]

1. d4 {[%clk 0:03:00.9]} 1... d5 {[%clk 0:02:52.2]} 2. Nf3 {[%clk 0:03:01.2]}
2... Nf6 {[%clk 0:02:50.7]} 3. c4 {[%clk 0:03:01.7]} 3... dxc4 {[%clk 0:02:49]}
4. e3 {[%clk 0:03:01.6]} 4... Bf5 {[%clk 0:02:43.2]} 5. Bxc4 {[%clk 0:03:00.8]}
5... e6 {[%clk 0:02:41.7]} 6. Nc3 {[%clk 0:03:01.1]} 6... c6 {[%clk 0:02:39.8]}
7. Qe2 {[%clk 0:02:59.1]} 7... Bb4 {[%clk 0:02:33.1]} 8. Bd2 {[%clk 0:02:55.9]}
8... O-O {[%clk 0:02:27.6]} 9. a3 {[%clk 0:02:56.2]} 9... Ba5 {[%clk 0:02:25.6]}
10. b4 {[%clk 0:02:35.7]} 10... Bc7 {[%clk 0:02:18.5]} 11. h3 {[%clk 0:02:25.6]}
11... h6 {[%clk 0:02:15.5]} 12. Rd1 {[%clk 0:02:21.3]} 12... Nbd7 {[%clk
0:02:12.5]} 13. Bc1 {[%clk 0:02:10.9]} 13... Nb6 {[%clk 0:02:08.6]} 14. Bd3
{[%clk 0:02:10.9]} 14... Bxd3 {[%clk 0:02:02.6]} 15. Qxd3 {[%clk 0:02:11.8]}
15... Nbd5 {[%clk 0:02:00.2]} 16. Bb2 {[%clk 0:02:01.8]} 16... Re8 {[%clk
0:01:52.8]} 17. e4 {[%clk 0:01:44.1]} 17... Nf4 {[%clk 0:01:42.4]} 18. Qf1
{[%clk 0:01:44.2]} 18... a5 {[%clk 0:01:29.3]} 19. g3 {[%clk 0:01:39.7]} 19...
Ng6 {[%clk 0:01:26.3]} 20. Qc4 {[%clk 0:01:23.9]} 20... axb4 {[%clk 0:01:23]}
21. axb4 {[%clk 0:01:24.8]} 21... Qe7 {[%clk 0:01:16]} 22. O-O {[%clk
0:01:14.7]} 22... Red8 {[%clk 0:01:06.2]} 23. Kg2 {[%clk 0:00:57.6]} 23... Rd7
{[%clk 0:00:43.8]} 24. d5 {[%clk 0:00:47.4]} 24... cxd5 {[%clk 0:00:32.5]} 25.
exd5 {[%clk 0:00:48.3]} 25... exd5 {[%clk 0:00:32.9]} 26. Nxd5 {[%clk
0:00:40.9]} 26... Nxd5 {[%clk 0:00:30.8]} 27. Rxd5 {[%clk 0:00:41.8]} 27... Rxd5
{[%clk 0:00:17.7]} 28. Qxd5 {[%clk 0:00:42.7]} 28... Qxb4 {[%clk 0:00:12.5]} 29.
Qd4 {[%clk 0:00:42.8]} 29... Qxd4 {[%clk 0:00:12.2]} 30. Bxd4 {[%clk 0:00:43.7]}
30... b5 {[%clk 0:00:10.1]} 31. Rb1 {[%clk 0:00:43.4]} 31... Rb8 {[%clk
0:00:09.9]} 32. Bc5 {[%clk 0:00:41.8]} 32... Ne5 {[%clk 0:00:04.4]} 33. Nd2
{[%clk 0:00:41.5]} 33... Nd3 {[%clk 0:00:04.2]} 34. Ba7 {[%clk 0:00:37.5]} 34...
Rb7 {[%clk 0:00:04.1]} 35. Be3 {[%clk 0:00:37.6]} 35... b4 {[%clk 0:00:04.2]}
36. Nb3 {[%clk 0:00:38]} 36... Bd6 {[%clk 0:00:02.6]} 37. Rd1 {[%clk 0:00:38]}
37... Nc5 {[%clk 0:00:01.5]} 38. Bxc5 {[%clk 0:00:30.3]} 38... Bxc5 {[%clk
0:00:01.2]} 39. Nxc5 {[%clk 0:00:30.9]} 39... Rb5 {[%clk 0:00:01.9]} 40. Nb3
{[%clk 0:00:30.6]} 40... Rb8 {[%clk 0:00:01.9]} 41. Rd4 {[%clk 0:00:30.5]} 41...
Kf8 {[%clk 0:00:01.8]} 42. Kf3 {[%clk 0:00:28.6]} 42... Ke7 {[%clk 0:00:02.3]}
43. Ke4 {[%clk 0:00:29.2]} 43... Ke6 {[%clk 0:00:02.7]} 44. f4 {[%clk
0:00:29.3]} 44... f5+ {[%clk 0:00:02.9]} 45. Kd3 {[%clk 0:00:29.9]} 45... g5
{[%clk 0:00:03.2]} 46. Kc4 {[%clk 0:00:29.8]} 46... Rc8+ {[%clk 0:00:02.2]} 47.
Kxb4 {[%clk 0:00:29.8]} 47... Rb8+ {[%clk 0:00:03.1]} 48. Kc4 {[%clk 0:00:29.8]}
48... Rc8+ {[%clk 0:00:03.5]} 49. Nc5+ {[%clk 0:00:30.4]} 49... Kf6 {[%clk
0:00:03.4]} 50. Rd6+ {[%clk 0:00:30.3]} 50... Kg7 {[%clk 0:00:03.7]} 51. Kd5
{[%clk 0:00:30]} 51... Ra8 {[%clk 0:00:03.4]} 52. Ne6+ {[%clk 0:00:28.8]} 52...
Kh7 {[%clk 0:00:03.1]} 53. Ke5 {[%clk 0:00:23.7]} 53... Ra3 {[%clk 0:00:02.8]}
54. g4 {[%clk 0:00:22]} 54... gxf4 {[%clk 0:00:02.2]} 55. Nxf4 {[%clk
0:00:20.1]} 55... fxg4 {[%clk 0:00:02.4]} 56. hxg4 {[%clk 0:00:20.6]} 56... Ra5+
{[%clk 0:00:02.8]} 57. Kf6 {[%clk 0:00:20.5]} 57... Rg5 {[%clk 0:00:02.9]} 58.
Ne6 {[%clk 0:00:19.5]} 58... Rxg4 {[%clk 0:00:02.9]} 59. Rd7+ {[%clk 0:00:19.6]}
59... Kh8 {[%clk 0:00:03.4]} 60. Rd8+ {[%clk 0:00:19.9]} 60... Rg8 {[%clk
0:00:04]} 61. Rd7 {[%clk 0:00:19.8]} 61... h5 {[%clk 0:00:03.8]} 62. Kf7 {[%clk
0:00:20]} 62... Rg1 {[%clk 0:00:03.7]} 63. Rd8+ {[%clk 0:00:18.8]} 63... Kh7
{[%clk 0:00:04.3]} 64. Nf8+ {[%clk 0:00:19.3]} 64... Kh8 {[%clk 0:00:03.3]} 65.
Rd6 {[%clk 0:00:19.5]} 65... Rf1+ {[%clk 0:00:03.2]} 66. Kg6 {[%clk 0:00:19.9]}
66... Rxf8 {[%clk 0:00:02.9]} 67. Kxh5 {[%clk 0:00:20.3]} 67... Rf1 {[%clk
0:00:02.3]} 68. Rg6 {[%clk 0:00:19.3]} 68... Rh1+ {[%clk 0:00:02.5]} 69. Kg5
{[%clk 0:00:19.7]} 69... Rg1+ {[%clk 0:00:02.9]} 70. Kf6 {[%clk 0:00:19.9]}
70... Rxg6+ {[%clk 0:00:03.8]} 71. Kxg6 {[%clk 0:00:20.1]} 1/2-1/2

[Event "Early-Titled-Tuesday-Blitz-April-02-2024"]
[Site "Chess.com"]
[Date "2024.04.02"]
[Round "2"]
[White "javirec"]
[Black "DeArron_Fox"]
[Result "1-0"]
[WhiteElo "2278"]
[BlackElo "2496"]
[TimeControl "180+1"]
[EndTime "8:18:52 PDT"]
[Termination "javirec won by checkmate"]

1. d4 {[%clk 0:03:00.9]} 1... d5 {[%clk 0:02:23.9]} 2. c4 {[%clk 0:02:57.9]}
2... e6 {[%clk 0:02:07.5]} 3. Nc3 {[%clk 0:02:57.7]} 3... Nf6 {[%clk 0:02:04.9]}
4. Bg5 {[%clk 0:02:57]} 4... Be7 {[%clk 0:02:01.2]} 5. cxd5 {[%clk 0:02:56.1]}
5... exd5 {[%clk 0:02:00.5]} 6. Qc2 {[%clk 0:02:56.4]} 6... c6 {[%clk
0:01:57.6]} 7. e3 {[%clk 0:02:55.5]} 7... Nbd7 {[%clk 0:01:56.4]} 8. Bd3 {[%clk
0:02:54.4]} 8... Nh5 {[%clk 0:01:47.6]} 9. Bxe7 {[%clk 0:02:51.7]} 9... Qxe7
{[%clk 0:01:48.5]} 10. Nge2 {[%clk 0:02:50.9]} 10... g6 {[%clk 0:01:45.2]} 11.
O-O-O {[%clk 0:02:44.6]} 11... Nb6 {[%clk 0:01:39.4]} 12. Ng3 {[%clk 0:02:41.4]}
12... Nxg3 {[%clk 0:01:35.6]} 13. hxg3 {[%clk 0:02:40.9]} 13... Be6 {[%clk
0:01:33.4]} 14. Ne2 {[%clk 0:02:31.8]} 14... O-O-O {[%clk 0:01:33.1]} 15. Nf4
{[%clk 0:02:29.9]} 15... Kb8 {[%clk 0:01:32.2]} 16. Kb1 {[%clk 0:02:29.2]} 16...
Rc8 {[%clk 0:01:22]} 17. Rc1 {[%clk 0:02:29.3]} 17... h5 {[%clk 0:01:13.4]} 18.
Qc5 {[%clk 0:02:11.8]} 18... Rhe8 {[%clk 0:00:41.2]} 19. Qxe7 {[%clk 0:01:40.2]}
19... Rxe7 {[%clk 0:00:42.1]} 20. Rc3 {[%clk 0:01:40.2]} 20... Rce8 {[%clk
0:00:20.7]} 21. Rhc1 {[%clk 0:01:39.7]} 21... Bc8 {[%clk 0:00:18.1]} 22. Bc2
{[%clk 0:01:37.3]} 22... Nc4 {[%clk 0:00:14.2]} 23. Rd1 {[%clk 0:01:35.7]} 23...
Nd6 {[%clk 0:00:14.1]} 24. Rb3 {[%clk 0:01:30.1]} 24... Bf5 {[%clk 0:00:13.2]}
25. Bxf5 {[%clk 0:01:28.2]} 25... Nxf5 {[%clk 0:00:14.1]} 26. Nd3 {[%clk
0:01:28.5]} 26... Rh8 {[%clk 0:00:10.7]} 27. Nc5 {[%clk 0:01:27.9]} 27... h4
{[%clk 0:00:07.9]} 28. g4 {[%clk 0:01:24.3]} 28... Nd6 {[%clk 0:00:08]} 29. Rh1
{[%clk 0:01:14.1]} 29... Ne4 {[%clk 0:00:06.2]} 30. Nxe4 {[%clk 0:01:11.9]}
30... Rxe4 {[%clk 0:00:07.1]} 31. f3 {[%clk 0:01:12.5]} 31... Re7 {[%clk
0:00:05.3]} 32. Kc2 {[%clk 0:01:11.8]} 32... f5 {[%clk 0:00:03]} 33. g5 {[%clk
0:01:07.5]} 33... Rhe8 {[%clk 0:00:01.6]} 34. Kd2 {[%clk 0:01:05.1]} 34... f4
{[%clk 0:00:02]} 35. Re1 {[%clk 0:01:05.6]} 35... fxe3+ {[%clk 0:00:02.1]} 36.
Rbxe3 {[%clk 0:01:06.2]} 36... Rxe3 {[%clk 0:00:02.2]} 37. Rxe3 {[%clk
0:01:07.1]} 37... Rxe3 {[%clk 0:00:02.4]} 38. Kxe3 {[%clk 0:01:08]} 38... Kc7
{[%clk 0:00:03]} 39. Kf4 {[%clk 0:00:32.2]} 39... Kd7 {[%clk 0:00:03.3]} 40. Kg4
{[%clk 0:00:32.3]} 40... Ke6 {[%clk 0:00:03.9]} 41. Kxh4 {[%clk 0:00:32.1]}
41... Kf5 {[%clk 0:00:03.7]} 42. Kg3 {[%clk 0:00:20.7]} 42... Kxg5 {[%clk
0:00:03.7]} 43. f4+ {[%clk 0:00:21.2]} 43... Kf5 {[%clk 0:00:03.6]} 44. Kf3
{[%clk 0:00:21.5]} 44... b6 {[%clk 0:00:02.9]} 45. g4+ {[%clk 0:00:21.6]} 45...
Kf6 {[%clk 0:00:02.9]} 46. b4 {[%clk 0:00:20]} 46... Ke6 {[%clk 0:00:03.4]} 47.
Kg3 {[%clk 0:00:15.1]} 47... Kf6 {[%clk 0:00:03]} 48. Kh4 {[%clk 0:00:12.2]}
48... a6 {[%clk 0:00:02.7]} 49. a3 {[%clk 0:00:11.2]} 49... Kf7 {[%clk 0:00:02]}
50. f5 {[%clk 0:00:07.8]} 50... gxf5 {[%clk 0:00:01.9]} 51. gxf5 {[%clk
0:00:08.7]} 51... Kf6 {[%clk 0:00:01.7]} 52. Kg4 {[%clk 0:00:09.3]} 52... Kf7
{[%clk 0:00:02]} 53. Kg5 {[%clk 0:00:08.3]} 53... Kg7 {[%clk 0:00:02.6]} 54. f6+
{[%clk 0:00:07.8]} 54... Kf7 {[%clk 0:00:03.1]} 55. Kf5 {[%clk 0:00:08.2]} 55...
Kf8 {[%clk 0:00:01.9]} 56. Ke6 {[%clk 0:00:08.1]} 56... Ke8 {[%clk 0:00:01.8]}
57. f7+ {[%clk 0:00:03.6]} 57... Kf8 {[%clk 0:00:02.3]} 58. Kf6 {[%clk
0:00:03.6]} 58... c5 {[%clk 0:00:02.2]} 59. bxc5 {[%clk 0:00:03.3]} 59... bxc5
{[%clk 0:00:03]} 60. dxc5 {[%clk 0:00:03.7]} 60... d4 {[%clk 0:00:03.9]} 61. c6
{[%clk 0:00:04.3]} 61... d3 {[%clk 0:00:04.8]} 62. c7 {[%clk 0:00:04.9]} 62...
d2 {[%clk 0:00:05.7]} 63. c8=Q# {[%clk 0:00:05.4]} 1-0